fUST/lending_fUST_20240922
["ID","MTS","AMOUNT","RATE_DAILY","PERIOD"]
[338874544,1726974646282,-152.518231,0.00032601,7]
[338874546,1726974646294,-151.0,0.00032601,7]
[338874548,1726974646304,-151.0,0.00032601,7]
[338874550,1726974646315,-238.43976,0.00032601,7]
[338874552,1726974646325,-238.43976,0.00032601,7]
[338874554,1726974646335,-926.125627,0.00032601,7]
[338874557,1726974646346,-926.125627,0.00032601,7]
[338874559,1726974646355,-446.846941,0.00032601,7]
[338874561,1726974646366,-446.846941,0.00032601,7]
[338874563,1726974646376,-153.132413,0.00032601,7]
[338874565,1726974646387,-151.0,0.00032601,7]
[338874567,1726974646397,-280.464013,0.00032601,7]
[338874569,1726974646407,-280.464013,0.00032601,7]
[338874571,1726974646420,-992.75646733,0.00032608,2]
[338874573,1726974646430,-160.0,0.00032608,10]
[338874575,1726974646439,-160.0,0.00032608,10]
[338874577,1726974646448,-160.0,0.00032608,10]
[338874580,1726974646458,-160.0,0.00032608,10]
[338874582,1726974646467,-160.37174094,0.00032608,10]
[338874584,1726974646478,-160.97639217,0.00032608,10]
[338874585,1726974646487,-500.0,0.00032609,12]
[338874587,1726974646497,-500.0,0.00032609,12]
[338874589,1726974646506,-524.817909,0.00032612,7]
[338874590,1726974646515,-524.817909,0.00032612,7]
[338874591,1726974646525,-151.0,0.00032612,7]
[338874592,1726974646534,-151.0,0.00032612,7]
[338874593,1726974646545,-152.060727,0.00032612,7]
[338874594,1726974646555,-243.73761053,0.0003267,2]
[338874595,1726974646564,-519.64758987,0.0003267,2]
[338874596,1726974646574,-500.0,0.0003267,2]
[338874597,1726974646583,-500.0,0.0003267,2]
[338874598,1726974646592,-500.0,0.0003267,2]
[338874599,1726974646602,-500.0,0.0003267,2]
[338874600,1726974646614,-500.0,0.0003267,2]
[338874601,1726974646624,-155.308,0.0003267,120]
[338874602,1726974646633,-155.309,0.0003267,120]
[338874603,1726974646642,-155.308,0.0003267,120]
[338874604,1726974646651,-155.309,0.0003267,120]
[338874605,1726974646661,-155.308,0.0003267,120]
[338874606,1726974646670,-524.817909,0.0003267,7]
[338874607,1726974646680,-524.817909,0.0003267,7]
[338874608,1726974646689,-524.817909,0.0003267,7]
[338874609,1726974646699,-524.817909,0.0003267,7]
[338874610,1726974646709,-524.817909,0.0003267,7]
[338874611,1726974646718,-524.817909,0.0003267,7]
[338874612,1726974646727,-524.817909,0.0003267,7]
[338874613,1726974646736,-524.817909,0.0003267,7]
[338874614,1726974646745,-524.817909,0.0003267,7]
[338874615,1726974646754,-524.817909,0.0003267,7]
[338874616,1726974646764,-524.817909,0.0003267,7]
[338874617,1726974646773,-524.817909,0.0003267,7]
[338874618,1726974646782,-524.817909,0.0003267,7]
[338874619,1726974646792,-524.817909,0.0003267,7]
[338874620,1726974646802,-524.817909,0.0003267,7]
[338874621,1726974646812,-524.817914,0.0003267,7]
[338874622,1726974646823,-151.0,0.0003267,7]
[338874623,1726974646836,-151.0,0.0003267,7]
[338874624,1726974646845,-151.0,0.0003267,7]
[338874625,1726974646856,-151.0,0.0003267,7]
[338874626,1726974646866,-151.0,0.0003267,7]
[338874627,1726974646875,-151.0,0.0003267,7]
[338874628,1726974646884,-151.0,0.0003267,7]
[338874629,1726974646893,-201.778431,0.0003267,7]
[338874630,1726974646903,-151.0,0.0003267,7]
[338874631,1726974646912,-151.0,0.0003267,7]
[338874632,1726974646921,-151.0,0.0003267,7]
[338874633,1726974646933,-151.0,0.0003267,7]
[338874634,1726974646943,-151.0,0.0003267,7]
[338874635,1726974646954,-151.0,0.0003267,7]
[338874636,1726974646964,-151.0,0.0003267,7]
[338874637,1726974646973,-151.0,0.0003267,7]
[338874638,1726974646982,-151.0,0.0003267,7]
[338874639,1726974646992,-177.215734,0.0003267,7]
[338874640,1726974647001,-151.0,0.0003267,7]
[338874641,1726974647010,-151.0,0.0003267,7]
[338874642,1726974647020,-151.0,0.0003267,7]
[338874643,1726974647029,-238.43976,0.0003267,7]
[338874644,1726974647038,-238.43976,0.0003267,7]
[338874645,1726974647048,-238.43976,0.0003267,7]
[338874646,1726974647057,-238.43976,0.0003267,7]
[338874647,1726974647066,-238.43976,0.0003267,7]
[338874648,1726974647075,-238.43976,0.0003267,7]
[338874649,1726974647084,-238.43976,0.0003267,7]
[338874650,1726974647093,-238.43976,0.0003267,7]
[338874651,1726974647102,-238.43976,0.0003267,7]
[338874652,1726974647112,-238.43976,0.0003267,7]
[338874653,1726974647121,-238.43976,0.0003267,7]
[338874654,1726974647130,-238.43976,0.0003267,7]
[338874655,1726974647139,-238.43976,0.0003267,7]
[338874656,1726974647148,-238.43976,0.0003267,7]
[338874657,1726974647157,-238.43976,0.0003267,7]
[338874658,1726974647166,-238.439752,0.0003267,7]
[338874660,1726974647175,-926.125627,0.0003267,7]
[338874662,1726974647185,-926.125627,0.0003267,7]
[338874664,1726974647194,-926.125627,0.0003267,7]
[338874666,1726974647203,-926.125627,0.0003267,7]
[338874668,1726974647212,-926.125627,0.0003267,7]
[338874670,1726974647222,-926.125627,0.0003267,7]
[338874672,1726974647231,-926.125627,0.0003267,7]
[338874674,1726974647240,-926.125627,0.0003267,7]
[338874676,1726974647250,-926.125627,0.0003267,7]
[338874678,1726974647259,-926.125627,0.0003267,7]
[338874680,1726974647268,-926.125627,0.0003267,7]
[338874682,1726974647277,-926.125627,0.0003267,7]
[338874684,1726974647287,-926.125627,0.0003267,7]
[338874686,1726974647297,-926.12562124,0.0003267,7]
[338874688,1726974647306,-446.846941,0.0003267,7]
[338874690,1726974647315,-446.846941,0.0003267,7]
[338874692,1726974647325,-446.846941,0.0003267,7]
[338874694,1726974647337,-446.846941,0.0003267,7]
[338874696,1726974647348,-446.846941,0.0003267,7]
[338874699,1726974647360,-446.846941,0.0003267,7]
[338874701,1726974647372,-446.846941,0.0003267,7]
[338874703,1726974647383,-1000.0,0.0003267,28]
[338874706,1726974647395,-446.846941,0.0003267,7]
[338874708,1726974647409,-1000.0,0.0003267,28]
[338874710,1726974647421,-446.846941,0.0003267,7]
[338874712,1726974647431,-1000.0,0.0003267,28]
[338874714,1726974647442,-446.846941,0.0003267,7]
[338874716,1726974647455,-1000.0,0.0003267,28]
[338874719,1726974647468,-446.846941,0.0003267,7]
[338874721,1726974647479,-1000.0,0.0003267,28]
[338874723,1726974647489,-446.846941,0.0003267,7]
[338874725,1726974647501,-1000.0,0.0003267,28]
[338874727,1726974647512,-446.846941,0.0003267,7]
[338874729,1726974647523,-1000.0,0.0003267,28]
[338874731,1726974647534,-446.846943,0.0003267,7]
[338874733,1726974647546,-1000.0,0.0003267,28]
[338874734,1726974647557,-1000.0,0.0003267,28]
[338874735,1726974647567,-1000.0,0.0003267,28]
[338874736,1726974647578,-1000.0,0.0003267,28]
[338874737,1726974647589,-1000.0,0.0003267,28]
[338874738,1726974647601,-1000.0,0.0003267,28]
[338874739,1726974647613,-1000.0,0.0003267,28]
[338874740,1726974647624,-1000.0,0.0003267,28]
[338874741,1726974647635,-1000.0,0.0003267,28]
[338874742,1726974647645,-1000.0,0.0003267,28]
[338874743,1726974647656,-1000.0,0.0003267,28]
[338874744,1726974647667,-1000.0,0.0003267,28]
[338874745,1726974647677,-1000.0,0.0003267,28]
[338874746,1726974647687,-1000.0,0.0003267,28]
[338874747,1726974647699,-331.157936,0.0003267,7]
[338874748,1726974647710,-1000.0,0.0003267,28]
[338874750,1726974647723,-331.157936,0.0003267,7]
[338874751,1726974647735,-1000.0,0.0003267,28]
[338874753,1726974647748,-331.157936,0.0003267,7]
[338874755,1726974647759,-1000.0,0.0003267,28]
[338874756,1726974647770,-331.157936,0.0003267,7]
[338874757,1726974647781,-1000.0,0.0003267,28]
[338874758,1726974647791,-331.157936,0.0003267,7]
[338874759,1726974647801,-1000.0,0.0003267,28]
[338874760,1726974647811,-331.157936,0.0003267,7]
[338874761,1726974647821,-1000.0,0.0003267,28]
[338874762,1726974647831,-331.157936,0.0003267,7]
[338874763,1726974647842,-1000.0,0.0003267,28]
[338874764,1726974647852,-331.157936,0.0003267,7]
[338874765,1726974647864,-1000.0,0.0003267,28]
[338874766,1726974647875,-1000.0,0.0003267,28]
[338874767,1726974647887,-331.157936,0.0003267,7]
[338874768,1726974647897,-1000.0,0.0003267,28]
[338874769,1726974647910,-331.157936,0.0003267,7]
[338874770,1726974647920,-1000.0,0.0003267,28]
[338874771,1726974647933,-331.157936,0.0003267,7]
[338874772,1726974647945,-1000.0,0.0003267,28]
[338874773,1726974647956,-331.157936,0.0003267,7]
[338874774,1726974647968,-1000.0,0.0003267,28]
[338874775,1726974647980,-331.157936,0.0003267,7]
[338874776,1726974647991,-331.157936,0.0003267,7]
[338874777,1726974648003,-1000.0,0.0003267,28]
[338874778,1726974648014,-331.157936,0.0003267,7]
[338874779,1726974648025,-1000.0,0.0003267,28]
[338874780,1726974648035,-331.157926,0.0003267,7]
[338874781,1726974648045,-1000.0,0.0003267,28]
[338874782,1726974648055,-1000.0,0.0003267,28]
[338874783,1726974648064,-1000.0,0.0003267,28]
[338874784,1726974648074,-1000.0,0.0003267,28]
[338874785,1726974648084,-1000.0,0.0003267,28]
[338874786,1726974648094,-1000.0,0.0003267,28]
[338874787,1726974648106,-151.0,0.0003267,7]
[338874788,1726974648118,-1000.0,0.0003267,28]
[338874789,1726974648129,-280.464013,0.0003267,7]
[338874790,1726974648140,-1000.0,0.0003267,28]
[338874791,1726974648152,-280.464013,0.0003267,7]
[338874792,1726974648161,-151.0,0.0003267,7]
[338874793,1726974648171,-1000.0,0.0003267,28]
[338874794,1726974648181,-280.464013,0.0003267,7]
[338874795,1726974648194,-151.0,0.0003267,7]
[338874796,1726974648206,-1000.0,0.0003267,28]
[338874797,1726974648219,-280.464013,0.0003267,7]
[338874798,1726974648231,-190.251139,0.0003267,7]
[338874799,1726974648242,-1000.0,0.0003267,28]
[338874800,1726974648255,-1000.0,0.0003267,28]
[338874801,1726974648265,-1000.0,0.0003267,28]
[338874802,1726974648275,-280.464013,0.0003267,7]
[338874803,1726974648285,-1028.660167,0.0003267,28]
[338874804,1726974648296,-280.464013,0.0003267,7]
[338874805,1726974648306,-280.464013,0.0003267,7]
[338874806,1726974648317,-151.0,0.0003267,7]
[338874807,1726974648328,-151.0,0.0003267,7]
[338874808,1726974648338,-280.464013,0.0003267,7]
[338874809,1726974648350,-151.0,0.0003267,7]
[338874810,1726974648361,-280.464013,0.0003267,7]
[338874811,1726974648372,-151.0,0.0003267,7]
[338874812,1726974648383,-280.464013,0.0003267,7]
[338874813,1726974648394,-151.0,0.0003267,7]
[338874814,1726974648407,-280.464013,0.0003267,7]
[338874815,1726974648424,-151.0,0.0003267,7]
[338874816,1726974648435,-280.464013,0.0003267,7]
[338874817,1726974648445,-151.0,0.0003267,7]
[338874818,1726974648456,-280.464013,0.0003267,7]
[338874819,1726974648466,-280.464021,0.0003267,7]
[338874820,1726974648477,-151.0,0.0003267,7]
[338874821,1726974648488,-151.0,0.0003267,7]
[338874822,1726974648499,-196.349948,0.0003267,7]
[338874823,1726974648510,-263.639822,0.0003267,7]
[338874824,1726974648521,-263.639822,0.0003267,7]
[338874825,1726974648533,-263.639822,0.0003267,7]
[338874826,1726974648545,-263.639822,0.0003267,7]
[338874827,1726974648556,-263.639822,0.0003267,7]
[338874828,1726974648566,-263.639822,0.0003267,7]
[338874829,1726974648576,-263.639822,0.0003267,7]
[338874830,1726974648587,-263.639822,0.0003267,7]
[338874831,1726974648598,-263.639822,0.0003267,7]
[338874832,1726974648608,-263.639822,0.0003267,7]
[338874833,1726974648619,-263.639822,0.0003267,7]
[338874834,1726974648629,-263.639822,0.0003267,7]
[338874835,1726974648639,-263.639822,0.0003267,7]
[338874836,1726974648649,-263.639822,0.0003267,7]
[338874837,1726974648663,-263.639822,0.0003267,7]
[338874838,1726974648673,-263.63983,0.0003267,7]
[338874839,1726974648683,-151.0,0.0003267,7]
[338874840,1726974648694,-151.0,0.0003267,7]
[338874841,1726974648704,-151.0,0.0003267,7]
[338874842,1726974648714,-151.0,0.0003267,7]
[338874843,1726974648724,-151.0,0.0003267,7]
[338874844,1726974648736,-166.782961,0.0003267,7]
[338874845,1726974648746,-2131.706153,0.0003267,7]
[338874846,1726974648757,-2131.706153,0.0003267,7]
[338874847,1726974648767,-2131.706153,0.0003267,7]
[338874848,1726974648778,-2131.706153,0.0003267,7]
[338874849,1726974648790,-2131.706153,0.0003267,7]
[338874850,1726974648802,-2131.706153,0.0003267,7]
[338874851,1726974648814,-2131.706153,0.0003267,7]
[338874852,1726974648825,-2131.706153,0.0003267,7]
[338874853,1726974648837,-2131.706153,0.0003267,7]
[338874854,1726974648847,-2131.706153,0.0003267,7]
[338874855,1726974648858,-2131.706153,0.0003267,7]
[338874856,1726974648868,-359.901343,0.0003267,7]
[338874857,1726974648878,-2131.706153,0.0003267,7]
[338874858,1726974648888,-359.901343,0.0003267,7]
[338874859,1726974648899,-2131.706153,0.0003267,7]
[338874860,1726974648909,-359.901343,0.0003267,7]
[338874861,1726974648920,-2131.70614432,0.0003267,7]
[338874862,1726974648931,-151.0,0.0003267,7]
[338874863,1726974648942,-151.0,0.0003267,7]
[338874864,1726974648952,-359.901343,0.0003267,7]
[338874865,1726974648962,-151.0,0.0003267,7]
[338874866,1726974648973,-359.901343,0.0003267,7]
[338874867,1726974648984,-151.0,0.0003267,7]
[338874868,1726974648994,-359.901343,0.0003267,7]
[338874869,1726974649004,-151.0,0.0003267,7]
[338874870,1726974649013,-359.901343,0.0003267,7]
[338874871,1726974649024,-151.0,0.0003267,7]
[338874872,1726974649034,-151.0,0.0003267,7]
[338874873,1726974649047,-359.901343,0.0003267,7]
[338874874,1726974649058,-359.901343,0.0003267,7]
[338874875,1726974649068,-359.901343,0.0003267,7]
[338874876,1726974649078,-359.901343,0.0003267,7]
[338874877,1726974649088,-359.901343,0.0003267,7]
[338874878,1726974649099,-359.901343,0.0003267,7]
[338874879,1726974649109,-359.901341,0.0003267,7]
[338874880,1726974649120,-151.0,0.0003267,7]
[338874881,1726974649130,-151.0,0.0003267,7]
[338874882,1726974649141,-151.0,0.0003267,7]
[338874883,1726974649152,-151.0,0.0003267,7]
[338874884,1726974649163,-151.0,0.0003267,7]
[338874885,1726974649174,-151.0,0.0003267,7]
[338874886,1726974649184,-218.465501,0.0003267,7]
[338874887,1726974649361,-1538.86377,0.0003267,7]
[338874888,1726974649377,-1538.86377,0.0003267,7]
[338874889,1726974649389,-1538.86377,0.0003267,7]
[338874890,1726974649399,-1538.86377,0.0003267,7]
[338874891,1726974649411,-1538.86377,0.0003267,7]
[338874892,1726974649426,-1538.86377,0.0003267,7]
[338874893,1726974649436,-1538.86377,0.0003267,7]
[338874894,1726974649446,-854.403004,0.0003267,7]
[338874895,1726974649455,-224.841981,0.0003267,7]
[338874896,1726974649465,-854.403004,0.0003267,7]
[338874897,1726974649475,-1538.86377,0.0003267,7]
[338874898,1726974649484,-224.841981,0.0003267,7]
[338874899,1726974649494,-854.403004,0.0003267,7]
[338874900,1726974649505,-1538.86377,0.0003267,7]
[338874901,1726974649514,-224.841981,0.0003267,7]
[338874902,1726974649524,-854.403004,0.0003267,7]
[338874903,1726974649534,-1538.86377,0.0003267,7]
[338874904,1726974649545,-224.841981,0.0003267,7]
[338874905,1726974649554,-854.403004,0.0003267,7]
[338874906,1726974649563,-1538.86377,0.0003267,7]
[338874907,1726974649573,-224.841981,0.0003267,7]
[338874908,1726974649582,-1538.86377,0.0003267,7]
[338874909,1726974649592,-854.403004,0.0003267,7]
[338874910,1726974649602,-224.841981,0.0003267,7]
[338874911,1726974649611,-854.403004,0.0003267,7]
[338874912,1726974649620,-1538.86377,0.0003267,7]
[338874913,1726974649629,-224.841981,0.0003267,7]
[338874914,1726974649638,-1538.863773,0.0003267,7]
[338874915,1726974649647,-854.403004,0.0003267,7]
[338874916,1726974649657,-854.403004,0.0003267,7]
[338874917,1726974649666,-439.258733,0.0003267,7]
[338874918,1726974649677,-854.403004,0.0003267,7]
[338874919,1726974649687,-439.258733,0.0003267,7]
[338874920,1726974649698,-854.403004,0.0003267,7]
[338874921,1726974649708,-439.258733,0.0003267,7]
[338874922,1726974649719,-854.403004,0.0003267,7]
[338874923,1726974649731,-439.258733,0.0003267,7]
[338874924,1726974649741,-854.403004,0.0003267,7]
[338874925,1726974649750,-439.258733,0.0003267,7]
[338874926,1726974649760,-224.841981,0.0003267,7]
[338874927,1726974649770,-854.403004,0.0003267,7]
[338874928,1726974649780,-439.258733,0.0003267,7]
[338874929,1726974649790,-224.841981,0.0003267,7]
[338874930,1726974649799,-439.258733,0.0003267,7]
[338874931,1726974649809,-224.841981,0.0003267,7]
[338874932,1726974649820,-224.841981,0.0003267,7]
[338874933,1726974649829,-224.841981,0.0003267,7]
[338874934,1726974649839,-224.841981,0.0003267,7]
[338874935,1726974649849,-224.841983,0.0003267,7]
[338874936,1726974649858,-439.258733,0.0003267,7]
[338874937,1726974649868,-439.258733,0.0003267,7]
[338874938,1726974649878,-439.258733,0.0003267,7]
[338874939,1726974649888,-439.258733,0.0003267,7]
[338874940,1726974649898,-439.258733,0.0003267,7]
[338874941,1726974649908,-439.258733,0.0003267,7]
[338874942,1726974649917,-439.258735,0.0003267,7]
[338874943,1726974649926,-1054.89399,0.0003267,7]
[338874944,1726974649936,-1054.89399,0.0003267,7]
[338874945,1726974649947,-152.142504,0.0003267,7]
[338874946,1726974649956,-151.0,0.0003267,7]
[338874947,1726974649966,-536.957542,0.0003267,7]
[338874948,1726974649975,-151.0,0.0003267,7]
[338874949,1726974649984,-536.957542,0.0003267,7]
[338874950,1726974649993,-266.760156,0.0003267,7]
[338874951,1726974650003,-266.760156,0.0003267,7]
[338874952,1726974650012,-467.57978,0.0003267,7]
[338874953,1726974650022,-467.57978,0.0003267,7]
[338874954,1726974650032,-102447.41314475,0.00032671,20]
[338874955,1726974650134,-263.0,0.00032108,2]
[338874956,1726974650144,-35444.10416816,0.00032671,20]
[338874957,1726974650156,-21611.98342001,0.00032671,20]
[338874958,1726974743566,10000.0,0.00014014,2]
[338874959,1726974752015,10000.0,0.00014014,2]
[338874960,1726974772088,2367.9,0.00014014,2]
[338874967,1726975616228,-169.68871094,0.00025457,2]
[338874968,1726975625109,-451.77698369,0.00025457,2]
[338874969,1726975625134,-166.666666,0.0002609,2]
[338874970,1726975625158,-250.0,0.00026207,2]
[338874971,1726975625180,-623.1390591,0.00026301,2]
[338874972,1726975625201,-774.7302189,0.0002653,2]
[338874973,1726975625223,-166.666666,0.00026801,2]
[338874974,1726975625244,-300.0,0.00027,2]
[338874975,1726975625272,-300.0,0.00027207,2]
[338874976,1726975625296,-300.0,0.00027207,2]
[338874977,1726975625319,-8712.47898246,0.00027208,2]
[338874978,1726975745128,-300.0,0.00018599,2]
[338874979,1726975745150,-14818.23895955,0.000186,2]
[338874980,1726975748167,-420.0,0.00020459,2]
[338874981,1726975748192,-453.0,0.00024932,2]
[338874982,1726975748217,-453.0,0.00025,2]
[338874983,1726975748238,-453.0,0.0002589,2]
[338875011,1726975832209,-3000.0,0.00027138,2]
[338875012,1726975832219,-191.018501,0.00027164,2]
[338875013,1726975832229,-454.0,0.00027185,2]
[338875014,1726975832238,-300.0,0.00027207,2]
[338875015,1726975832248,-11187.91573286,0.00027208,2]
[338875036,1726975838502,-2413.07633118,0.00027208,2]
[338875037,1726975838512,-191.018501,0.00027239,2]
[338875038,1726975838523,-191.018501,0.00027313,2]
[338875039,1726975838542,-191.018501,0.00027388,2]
[338875040,1726975838553,-191.018501,0.00027462,2]
[338875041,1726975838562,-166.666666,0.00027513,2]
[338875042,1726975838571,-191.018501,0.00027537,2]
[338875043,1726975838581,-191.018501,0.00027611,2]
[338875044,1726975838590,-191.018501,0.00027686,2]
[338875045,1726975838599,-191.018501,0.0002776,2]
[338875046,1726975838609,-191.018501,0.00027835,2]
[338875047,1726975838618,-191.018501,0.00027909,2]
[338875048,1726975838628,-191.018501,0.00027984,2]
[338875049,1726975838638,-300.0,0.00028,2]
[338875050,1726975838650,-2000.0,0.00028,2]
[338875051,1726975838659,-191.018501,0.00028058,2]
[338875052,1726975838671,-191.018501,0.00028133,2]
[338875053,1726975838683,-191.018501,0.00028207,2]
[338875054,1726975838694,-166.666666,0.00028224,2]
[338875055,1726975838704,-191.018501,0.00028282,2]
[338875056,1726975838713,-191.018501,0.00028356,2]
[338875057,1726975838723,-191.018501,0.00028431,2]
[338875058,1726975838732,-152.33630927,0.00028491,2]
[338875059,1726975838742,-191.018501,0.00028505,2]
[338875060,1726975838751,-191.018501,0.0002858,2]
[338875061,1726975838760,-166.666666,0.00028935,2]
[338875062,1726975838771,-453.0,0.00028997,2]
[338875063,1726975838782,-300.0,0.00029,2]
[338875064,1726975838792,-2000.0,0.00029,2]
[338875065,1726975838801,-15798.44979023,0.00029021,2]
[338875066,1726975838814,-380.53081326,0.00029021,2]
[338875067,1726975838826,-1632.01038598,0.00029021,2]
[338875078,1726975840266,-7089.00901053,0.00029021,2]
[338875079,1726975840277,-420.0,0.00029407,2]
[338875080,1726975840287,-151.0,0.000295,120]
[338875081,1726975840296,-166.666666,0.00029647,2]
[338875082,1726975840305,-300.0,0.0003,2]
[338875083,1726975840314,-2083.8725797,0.0003,2]
[338875084,1726975840324,-3000.0,0.0003,7]
[338875085,1726975840332,-1210.06410315,0.0003,3]
[338875086,1726975840341,-241.0,0.0003,2]
[338875087,1726975840351,-164.713,0.00030308,25]
[338875088,1726975840360,-453.0,0.0003081,2]
[338875089,1726975840370,-300.0,0.00031,4]
[338875090,1726975840379,-2000.0,0.00031,7]
[338875091,1726975840389,-453.0,0.00031068,2]
[338875092,1726975840398,-587.0,0.00031786,2]
[338875093,1726975840407,-1210.06410315,0.000318,3]
[338875094,1726975840417,-300.0,0.00032,5]
[338875095,1726975840427,-2000.0,0.00032,7]
[338875096,1726975840436,-150.0,0.00032,30]
[338875097,1726975840446,-251.335631,0.00032,30]
[338875098,1726975840455,-153.0,0.00032037,2]
[338875099,1726975840468,-500.0,0.00032328,15]
[338875100,1726975840478,-500.0,0.00032328,15]
[338875101,1726975840488,-500.0,0.00032328,2]
[338875102,1726975840497,-500.0,0.00032328,15]
[338875103,1726975840507,-500.0,0.00032328,15]
[338875104,1726975840518,-500.0,0.00032328,7]
[338875105,1726975840529,-500.0,0.00032328,7]
[338875106,1726975840538,-509.00797045,0.00032328,15]
[338875107,1726975840548,-621.77234772,0.00032328,15]
[338875108,1726975840558,-500.0,0.00032328,15]
[338875109,1726975840568,-500.0,0.00032328,15]
[338875110,1726975840578,-500.0,0.00032328,15]
[338875111,1726975840588,-500.0,0.00032328,15]
[338875112,1726975840599,-500.0,0.00032328,15]
[338875113,1726975840609,-500.0,0.00032328,15]
[338875114,1726975840620,-500.0,0.00032328,2]
[338875115,1726975840631,-500.0,0.00032328,15]
[338875116,1726975840642,-500.0,0.00032328,15]
[338875117,1726975840654,-163.42965179,0.0003238,2]
[338875118,1726975840664,-163.42965176,0.0003243,2]
[338875119,1726975840673,-577.46,0.0003246,3]
[338875120,1726975840682,-16890.7451276,0.0003247,4]
[338875121,1726975840692,-2007.1567392,0.0003247,4]
[338875122,1726975840702,-192.48,0.0003247,3]
[338875123,1726975840712,-163.42965176,0.00032479,2]
[338875124,1726975840722,-6023.53491366,0.0003248,4]
[338875168,1726975843664,-4954.90061983,0.0003248,4]
[338875173,1726975843803,-18.85430122,0.0003248,4]
[338875174,1726975843815,-5893.45529289,0.0003248,4]
[338875175,1726975843826,-2007.1567392,0.0003248,4]
[338875176,1726975843835,-16890.7451276,0.0003249,4]
[338875177,1726975843845,-2007.1567392,0.0003249,4]
[338875178,1726975843857,-163.42965176,0.00032529,2]
[338875179,1726975843868,-1306.79259416,0.00032558,3]
[338875180,1726975843880,-3601.2939011,0.00032558,3]
[338875189,1726975846220,-45558.23350474,0.00032558,3]
[338875190,1726975846230,-16194.19442811,0.00032568,4]
[338875191,1726975846252,-130.78031817,0.00032568,4]
[338875221,1726976834166,-3000.0,0.00021,2]
[338875222,1726976834192,-5850.0,0.0002101,2]
[338875223,1726976834217,-166.666666,0.00028755,2]
[338875224,1726976834241,-249.068073,0.0002889,2]
[338875225,1726976834264,-2995.63623778,0.00028915,2]
[338875576,1726977046607,-1362.37455298,0.00028915,2]
[338875802,1726978041129,-163.9128897,0.00019301,2]
[338875803,1726978041154,-747.26399541,0.00019907,2]
[338875804,1726978041176,-160.4,0.00019996,3]
[338875805,1726978041200,-481.2,0.00019996,3]
[338875806,1726978041225,-166.38909791,0.00020005,2]
[338875807,1726978146144,-250.0000084,0.00019151,2]
[338875808,1726978146166,-320.8,0.00019996,3]
[338875809,1726978146188,-300.0,0.00020005,2]
[338875810,1726978146208,-300.0,0.00020005,2]
[338875811,1726978146228,-9259.23296759,0.00020006,3]
[338875812,1726978150242,-15337.18326777,0.00020006,3]
[338875813,1726978150268,-72094.00733702,0.00020006,3]
[338875814,1726978150295,-20950.5549119,0.00020006,3]
[338875815,1726978150324,-37704.78194011,0.00020006,3]
[338875816,1726978151137,-10102.01386419,0.00020006,3]
[338875817,1726978151163,-24900.0,0.00020016,2]
[338875818,1726978151185,-163.42965176,0.0002092,2]
[338875819,1726978151208,-2274.953764,0.00021,2]
[338875820,1726978153207,-725.046236,0.00021,2]
[338875821,1726978153228,-3000.0,0.0002101,2]
[338875822,1726978153251,-3000.0,0.0002102,2]
[338875823,1726978153273,-3000.0,0.0002103,2]
[338875824,1726978153295,-3000.0,0.0002104,2]
[338875825,1726978153319,-3000.0,0.0002105,2]
[338875826,1726978153343,-20950.5549119,0.0002105,3]
[338875827,1726978153365,-47806.7958043,0.0002105,3]
[338875828,1726978153386,-3000.0,0.0002106,2]
[338875829,1726978153406,-3000.0,0.0002107,2]
[338875830,1726978153426,-500.0,0.00021073,2]